[Event "ESP-chT Primera Division 2019"]
[Site "Linares"]
[Date "2019.08.27"]
[Round "2.18"]
[White "Garcia Elio, Elisa"]
[Black "Hernandez Estevez, Yudania"]
[Result "0-1"]
[ECO "A49"]
[WhiteElo "1812"]
[BlackElo "2247"]
[Annotator "NA"]
[PlyCount "82"]
[EventDate "2019.08.26"]
[EventType "team-tourn"]
[EventCountry "ESP"]
[SourceTitle "playchess.com"]
[Source "ChessBase"]
[SourceQuality "1"]
[TimeControl "5400+30"]

1. d4 {[%emt 0:00:00]} Nf6 {[%emt 0:00:00]} 2. Nf3 {[%emt 0:00:41]} g6 {[%emt 0:00:27]} 3. g3 {[%emt 0:03:55]} Bg7 {[%emt 0:02:04]} 4. Bg2 {[%emt 0:00:48]} O-O {[%emt 0:03:25]} 5. O-O {[%emt 0:02:21]} d6 {[%emt 0:00:07]} 6. Nbd2 {[%emt 0:09:01]} c5 {[%emt 0:07:06]} 7. c3 {[%emt 0:08:33]} Nc6 {[%emt 0:01:38]} 8. Re1 {[%emt 0:15:30]} cxd4 {[%emt 0:04:30]} 9. Nxd4 {[%emt 0:01:28]} Bd7 {[%emt 0:00:29]} 10. N2b3 {[%emt 0:05:01]} Rc8 {[%emt 0:02:57]} 11. Bd2 {[%emt 0:04:44]} Ng4 {[%emt 0:07:52]} 12. h3 {[%emt 0:10:43]} Nge5 {[%emt 0:00:28]} 13. Bc1 {[%emt 0:08:56]} Nxd4 {[%emt 0:02:06]} 14. Nxd4 {[%emt 0:01:01]} b5 {[%emt 0:00:31]} 15. a3 {[%emt 0:03:47]} Qb6 {[%emt 0:05:10]} 16. e4 {[%emt 0:04:01]} a5 {[%emt 0:01:02]} 17. Nc2 {[%emt 0:03:49]} Be6 {[%emt 0:03:26]} 18. Be3 {[%emt 0:01:30]} Qb8 {[%emt 0:01:45]} 19. Nd4 {[%emt 0:03:21]} Bd7 {[%emt 0:02:48]} 20. Rc1 {[%emt 0:04:10]} Nc4 {[%emt 0:01:00]} 21. Qe2 {[%emt 0:00:49]} Nxe3 {[%emt 0:00:40]} 22. Qxe3 {[%emt 0:00:37]} b4 {[%emt 0:00:21]} 23. axb4 {[%emt 0:01:08]} axb4 {[%emt 0:00:12]} 24. c4 {[%emt 0:03:41]} Rc5 {[%emt 0:07:56]} 25. b3 {[%emt 0:00:47]} Ra5 {[%emt 0:00:27]} 26. Ra1 {[%emt 0:01:30]} Ra3 {[%emt 0:01:27]} 27. Rad1 {[%emt 0:00:21]} Rc8 {[%emt 0:02:46]} 28. Nc2 {[%emt 0:00:26]} Ra2 {[%emt 0:02:43]} 29. Nd4 {[%emt 0:00:44]} Qa7 {[%emt 0:04:14]} 30. Nf3 {[%emt 0:00:39]} Bc3 {[%emt 0:03:57]} 31. Re2 {[%emt 0:00:25]} Qa3 {[%emt 0:02:10]} 32. Rxa2 {[%emt 0:00:17]} Qxa2 {[%emt 0:00:15]} 33. Qg5 {[%emt 0:01:02]} Qxb3 {[%emt 0:00:38]} 34. Rf1 {[%emt 0:00:29]} Bf6 {[%emt 0:00:31]} 35. Qa5 {[%emt 0:00:20]} Qxc4 {[%emt 0:00:26]} 36. Nd2 {[%emt 0:00:36]} Qc3 {[%emt 0:02:54]} 37. Nb1 {[%emt 0:00:38]} Qd4 {[%emt 0:00:08]} 38. Qa2 {[%emt 0:00:34]} Be6 {[%emt 0:00:33]} 39. Qa6 {[%emt 0:00:29]} Rc2 {[%emt 0:01:09]} 40. Qa8+ {[%emt 0:00:23]} Kg7 41. h4 {[%emt 0:00:38]} Bc4 {[%emt 0:00:28]} 0-1

[Event "ESP-chT Primera Division 2019"]
[Site "Linares"]
[Date "2019.08.27"]
[Round "2.23"]
[White "Pallardo Lozoya, Jose Vicente"]
[Black "Rivas Garcia, Victor"]
[Result "1/2-1/2"]
[ECO "B26"]
[WhiteElo "2380"]
[BlackElo "2165"]
[Annotator "NA"]
[PlyCount "67"]
[EventDate "2019.08.26"]
[EventType "team-tourn"]
[EventCountry "ESP"]
[SourceTitle "playchess.com"]
[Source "ChessBase"]
[SourceQuality "1"]
[TimeControl "5400+30"]

1. e4 {[%emt 0:01:37]} c5 {[%emt 0:00:00]} 2. Nc3 {[%emt 0:00:07]} Nc6 {[%emt 0:00:00]} 3. g3 {[%emt 0:00:08]} g6 {[%emt 0:00:00]} 4. Bg2 {[%emt 0:00:06]} Bg7 {[%emt 0:00:00]} 5. d3 {[%emt 0:00:09]} d6 {[%emt 0:00:04]} 6. Be3 {[%emt 0:01:21]} Rb8 {[%emt 0:02:03]} 7. Qd2 {[%emt 0:02:15]} b5 {[%emt 0:00:58]} 8. f4 {[%emt 0:07:19]} Bd7 {[%emt 0:07:40]} 9. Nf3 {[%emt 0:05:44]} b4 {[%emt 0:03:32]} 10. Nd1 {[%emt 0:00:15]} Nd4 {[%emt 0:07:12]} 11. Nh4 {[%emt 0:06:15]} Qb6 {[%emt 0:06:25]} 12. O-O {[%emt 0:08:51]} Nh6 {[%emt 0:16:01]} 13. Kh1 {[%emt 0:07:22]} f5 {[%emt 0:05:05]} 14. Bg1 {[%emt 0:03:12]} O-O {[%emt 0:01:38]} 15. Ne3 {[%emt 0:03:43]} e6 {[%emt 0:02:10]} 16. Nc4 Qc7 {[%emt 0:06:51]} 17. e5 {[%emt 0:08:09]} d5 {[%emt 0:05:02]} 18. Ne3 {[%emt 0:06:48]} Rfd8 {[%emt 0:05:59]} 19. Nf3 {[%emt 0:06:30]} Nxf3 {[%emt 0:01:01]} 20. Bxf3 {[%emt 0:01:00]} c4 {[%emt 0:02:48]} 21. dxc4 {[%emt 0:03:20]} dxc4 {[%emt 0:00:18]} 22. Qg2 {[%emt 0:03:23]} c3 {[%emt 0:01:54]} 23. b3 {[%emt 0:05:31]} Bb5 {[%emt 0:01:07]} 24. Rfd1 {[%emt 0:00:07]} a5 {[%emt 0:03:26]} 25. a4 {[%emt 0:05:10]} Ba6 {[%emt 0:01:13]} 26. h3 {[%emt 0:04:54]} Nf7 {[%emt 0:02:25]} 27. Rxd8+ {[%emt 0:01:54]} Rxd8 {[%emt 0:00:20]} 28. Rd1 {[%emt 0:00:04]} Rd7 {[%emt 0:04:10]} 29. Rxd7 {[%emt 0:04:50]} Qxd7 {[%emt 0:00:06]} 30. Be2 {[%emt 0:00:03]} Bb7 {[%emt 0:01:29]} 31. Bf3 {[%emt 0:00:04]} Ba6 {[%emt 0:00:05]} 32. Be2 {[%emt 0:04:00]} Bb7 {[%emt 0:00:11]} 33. Bf3 {[%emt 0:00:06]} Ba6 {[%emt 0:00:04]} 34. Be2 {[%emt 0:01:23]} 1/2-1/2

[Event "ESP-chT Primera Division 2019"]
[Site "Linares"]
[Date "2019.08.28"]
[Round "3.4"]
[White "Almagro Llamas, Pablo"]
[Black "Martinez Ramirez, Erik"]
[Result "1-0"]
[ECO "A15"]
[WhiteElo "2453"]
[BlackElo "2217"]
[Annotator "ChessBase"]
[PlyCount "49"]
[EventDate "2019.08.26"]
[EventType "team-tourn"]
[EventCountry "ESP"]
[SourceTitle "playchess.com"]
[Source "ChessBase"]
[SourceQuality "1"]
[TimeControl "5400+30"]

1. c4 {[%emt 0:00:00]} Nf6 {[%emt 0:00:00]} 2. Nf3 {[%emt 0:00:20]} g6 {[%emt 0:00:00]} 3. Nc3 {[%emt 0:00:30]} d5 {[%emt 0:00:06]} 4. cxd5 {[%emt 0:00:14]} Nxd5 {[%emt 0:00:06]} 5. g3 {[%emt 0:00:49]} Bg7 {[%emt 0:00:07]} 6. Bg2 {[%emt 0:00:11]} O-O {[%emt 0:01:07]} 7. O-O {[%emt 0:00:33]} Nc6 {[%emt 0:02:31]} 8. d4 {[%emt 0:06:36]} Nb6 {[%emt 0:03:21]} 9. e3 {[%emt 0:01:19]} Re8 {[%emt 0:01:14]} 10. Qe2 {[%emt 0:07:41]} e5 {[%emt 0:03:07]} 11. dxe5 {[%emt 0:00:21]} Nxe5 {[%emt 0:00:08]} 12. Nxe5 {[%emt 0:00:24]} Bxe5 {[%emt 0:00:24]} 13. e4 {[%emt 0:03:24]} Be6 {[%emt 0:03:13]} 14. Rd1 {[%emt 0:01:49]} Qf6 {[%emt 0:06:10]} 15. f4 {[%emt 0:04:32]} Bxc3 {[%emt 0:00:23]} 16. bxc3 {[%emt 0:00:08]} Qxc3 {[%emt 0:00:23]} 17. Bb2 {[%emt 0:02:19]} Qa5 {[%emt 0:04:59]} 18. f5 {[%emt 0:25:43]} Bc8 {[%emt 0:15:02]} 19. Rac1 {[%emt 0:10:26]} Nd7 {[%emt 0:13:10]} 20. Qe3 {[%emt 0:06:19]} Qxa2 {[%emt 0:19:04]} 21. Qc3 {[%emt 0:07:11]} Ne5 {[%emt 0:01:14]} 22. Rd8 {[%emt 0:03:48]} Rxd8 {[%emt 0:00:08]} 23. Qxe5 {[%emt 0:00:09]} f6 {[%emt 0:00:40]} 24. Qxf6 {[%emt 0:00:15]} Rd7 {[%emt 0:00:14]} 25. fxg6 {[%emt 0:06:37]} 1-0

[Event "ESP-chT Primera Division 2019"]
[Site "Linares"]
[Date "2019.08.28"]
[Round "3.6"]
[White "Arno Bendicho, Xenia"]
[Black "Garcia-Castany Musellas, Gal.la"]
[Result "0-1"]
[ECO "A15"]
[WhiteElo "1774"]
[BlackElo "2149"]
[Annotator "NA"]
[PlyCount "102"]
[EventDate "2019.08.26"]
[EventType "team-tourn"]
[EventCountry "ESP"]
[SourceTitle "playchess.com"]
[Source "ChessBase"]
[SourceQuality "1"]
[TimeControl "5400+30"]

1. c4 {[%emt 0:00:00]} Nf6 {[%emt 0:00:00]} 2. Nf3 {[%emt 0:00:06]} e6 {[%emt 0:00:37]} 3. g3 d5 {[%emt 0:05:19]} 4. Bg2 {[%emt 0:00:11]} Bd6 {[%emt 0:01:21]} 5. O-O {[%emt 0:00:23]} O-O {[%emt 0:00:18]} 6. d3 {[%emt 0:01:19]} b6 {[%emt 0:06:01]} 7. a3 {[%emt 0:10:32]} Bb7 {[%emt 0:05:55]} 8. b3 {[%emt 0:08:47]} Nbd7 {[%emt 0:05:45]} 9. Bb2 {[%emt 0:00:41]} a6 {[%emt 0:04:51]} 10. Nbd2 {[%emt 0:03:56]} Re8 {[%emt 0:09:57]} 11. Rc1 {[%emt 0:07:01]} Qe7 {[%emt 0:06:10]} 12. Nb1 {[%emt 0:10:31]} Rad8 {[%emt 0:12:56]} 13. Nfd2 {[%emt 0:14:57]} Ba8 {[%emt 0:04:14]} 14. Re1 {[%emt 0:02:47]} c5 {[%emt 0:05:43]} 15. Nc3 {[%emt 0:07:51]} Be5 {[%emt 0:01:58]} 16. Nf3 {[%emt 0:06:04]} Bc7 {[%emt 0:03:12]} 17. Qc2 {[%emt 0:02:44]} d4 18. Nb1 Ng4 {[%emt 0:09:12]} 19. h3 {[%emt 0:09:15]} Nge5 {[%emt 0:00:29]} 20. Nbd2 {[%emt 0:00:18]} h5 {[%emt 0:00:39]} 21. Nxe5 {[%emt 0:00:55]} Nxe5 {[%emt 0:01:04]} 22. Bxa8 {[%emt 0:00:11]} Rxa8 {[%emt 0:00:04]} 23. Nf3 {[%emt 0:00:45]} Nxf3+ {[%emt 0:04:30]} 24. exf3 {[%emt 0:00:04]} h4 {[%emt 0:00:04]} 25. f4 {[%emt 0:02:45]} Qf6 {[%emt 0:03:56]} 26. Re4 {[%emt 0:03:53]} g6 {[%emt 0:01:52]} 27. Qe2 {[%emt 0:00:38]} Kg7 {[%emt 0:00:30]} 28. Qf3 {[%emt 0:03:46]} Rh8 29. g4 g5 {[%emt 0:02:10]} 30. f5 {[%emt 0:01:22]} exf5 {[%emt 0:01:59]} 31. Qxf5 {[%emt 0:00:07]} Qxf5 {[%emt 0:00:15]} 32. gxf5 {[%emt 0:00:03]} Kf6 {[%emt 0:00:03]} 33. Rce1 {[%emt 0:00:19]} Bd6 {[%emt 0:00:50]} 34. Bc1 {[%emt 0:00:22]} Kxf5 {[%emt 0:00:19]} 35. Rg4 {[%emt 0:00:41]} f6 {[%emt 0:00:48]} 36. Ree4 {[%emt 0:01:19]} Rhg8 {[%emt 0:03:42]} 37. f3 {[%emt 0:02:02]} b5 {[%emt 0:00:21]} 38. cxb5 {[%emt 0:00:49]} axb5 {[%emt 0:00:04]} 39. Re2 {[%emt 0:00:49]} Rge8 {[%emt 0:00:18]} 40. Rge4 {[%emt 0:00:20]} Rxe4 {[%emt 0:00:27]} 41. fxe4+ {[%emt 0:00:04]} Ke6 {[%emt 0:00:10]} 42. Kf1 {[%emt 0:00:13]} Ke5 {[%emt 0:01:19]} 43. Ke1 {[%emt 0:00:24]} c4 {[%emt 0:00:50]} 44. bxc4 {[%emt 0:01:41]} bxc4 {[%emt 0:00:11]} 45. dxc4 {[%emt 0:00:23]} Bxa3 {[%emt 0:00:07]} 46. Kd1 {[%emt 0:00:59]} Bxc1 {[%emt 0:00:16]} 47. Kxc1 {[%emt 0:00:03]} Rc8 {[%emt 0:00:15]} 48. Rc2 {[%emt 0:00:28]} Kxe4 {[%emt 0:00:05]} 49. Kd2 {[%emt 0:00:11]} f5 {[%emt 0:00:20]} 50. c5 {[%emt 0:00:21]} g4 {[%emt 0:00:11]} 51. hxg4 {[%emt 0:00:11]} fxg4 {[%emt 0:00:05]} 0-1

[Event "ESP-chT Primera Division 2019"]
[Site "Linares"]
[Date "2019.08.28"]
[Round "3.10"]
[White "Llobell Cortell, Enrique"]
[Black "Fernandez Gonzalez, Juan Carlos"]
[Result "1-0"]
[ECO "B12"]
[WhiteElo "2400"]
[BlackElo "2396"]
[Annotator "NA"]
[PlyCount "71"]
[EventDate "2019.08.26"]
[EventType "team-tourn"]
[EventCountry "ESP"]
[SourceTitle "playchess.com"]
[Source "ChessBase"]
[SourceQuality "1"]
[TimeControl "5400+30"]

1. e4 {[%emt 0:00:00]} c6 {[%emt 0:00:00]} 2. d4 {[%emt 0:00:17]} d5 {[%emt 0:00:00]} 3. e5 {[%emt 0:00:56]} Bf5 {[%emt 0:01:02]} 4. h4 {[%emt 0:00:52]} h6 {[%emt 0:00:57]} 5. g4 {[%emt 0:00:42]} Bd7 {[%emt 0:00:22]} 6. Nc3 {[%emt 0:01:03]} e6 {[%emt 0:00:41]} 7. Be3 {[%emt 0:01:40]} Qb6 {[%emt 0:03:48]} 8. Na4 {[%emt 0:05:43]} Qc7 {[%emt 0:05:19]} 9. f4 {[%emt 0:10:24]} b6 {[%emt 0:03:40]} 10. Nf3 {[%emt 0:27:10]} c5 {[%emt 0:04:49]} 11. Nc3 {[%emt 0:05:58]} c4 {[%emt 0:20:58]} 12. Ne2 {[%emt 0:05:58]} b5 {[%emt 0:03:32]} 13. a3 {[%emt 0:00:20]} Nc6 {[%emt 0:01:32]} 14. Ng3 {[%emt 0:00:04]} Nge7 {[%emt 0:08:35]} 15. Bh3 {[%emt 0:08:26]} Nc8 {[%emt 0:04:06]} 16. c3 {[%emt 0:00:45]} Na5 {[%emt 0:00:27]} 17. Nd2 {[%emt 0:01:04]} Nb6 {[%emt 0:00:38]} 18. Nh5 {[%emt 0:10:06]} Be7 {[%emt 0:07:39]} 19. Nxg7+ {[%emt 0:01:15]} Kf8 {[%emt 0:00:07]} 20. Nh5 {[%emt 0:00:16]} Bxh4+ {[%emt 0:00:05]} 21. Ke2 {[%emt 0:00:16]} Be7 {[%emt 0:06:18]} 22. Qc2 {[%emt 0:07:43]} Ke8 {[%emt 0:06:03]} 23. f5 {[%emt 0:00:10]} Kd8 {[%emt 0:05:38]} 24. Raf1 {[%emt 0:01:59]} Kc8 {[%emt 0:00:17]} 25. fxe6 {[%emt 0:08:06]} Bxe6 {[%emt 0:01:10]} 26. Ng7 {[%emt 0:00:13]} Kb7 {[%emt 0:05:44]} 27. Nxe6 {[%emt 0:01:18]} fxe6 {[%emt 0:00:02]} 28. Rf7 {[%emt 0:00:17]} Ka6 {[%emt 0:00:10]} 29. Qg6 {[%emt 0:00:45]} Qd7 {[%emt 0:02:12]} 30. Bxh6 Qe8 {[%emt 0:01:55]} 31. g5 {[%emt 0:01:07]} Rg8 {[%emt 0:01:30]} 32. Qxe6 {[%emt 0:00:26]} Bxg5 {[%emt 0:00:19]} 33. Bxg5 {[%emt 0:00:31]} Rxg5 {[%emt 0:00:17]} 34. Nf3 {[%emt 0:00:08]} Rh5 {[%emt 0:00:29]} 35. Qxe8 {[%emt 0:00:35]} Rxe8 {[%emt 0:00:04]} 36. Bc8+ {[%emt 0:00:09]} 1-0

[Event "ESP-chT Primera Division 2019"]
[Site "Linares"]
[Date "2019.08.28"]
[Round "3.14"]
[White "Martins, David Pires Tavares"]
[Black "Andres Gonzalez, Ivan"]
[Result "1-0"]
[ECO "D35"]
[WhiteElo "2427"]
[BlackElo "2284"]
[Annotator "NA RC"]
[PlyCount "87"]
[EventDate "2019.08.26"]
[EventType "team-tourn"]
[EventCountry "ESP"]
[SourceTitle "playchess.com"]
[Source "ChessBase"]
[SourceQuality "1"]
[TimeControl "5400+30"]

1. d4 {[%emt 0:00:00]} d5 {[%emt 0:00:17]} 2. c4 {[%emt 0:00:00]} e6 {[%emt 0:00:17]} 3. Nc3 {[%emt 0:00:00]} Nf6 {[%emt 0:00:30]} 4. cxd5 Nxd5 {[%emt 0:01:41]} 5. e4 {[%emt 0:00:00]} Nxc3 {[%emt 0:00:08]} 6. bxc3 {[%emt 0:00:01]} c5 {[%emt 0:01:19]} 7. Rb1 {[%emt 0:00:09]} Be7 {[%emt 0:01:42]} 8. Nf3 {[%emt 0:01:04]} O-O {[%emt 0:01:27]} 9. h4 {[%emt 0:00:18]} Nc6 {[%emt 0:08:31]} 10. h5 {[%emt 0:01:12]} cxd4 {[%emt 0:19:33]} 11. cxd4 {[%emt 0:00:06]} Bb4+ {[%emt 0:00:48]} 12. Bd2 {[%emt 0:00:24]} Bxd2+ {[%emt 0:02:24]} 13. Qxd2 {[%emt 0:00:05]} Qa5 {[%emt 0:07:37]} 14. h6 {[%emt 0:02:22]} g6 {[%emt 0:02:28]} 15. Bb5 {[%emt 0:00:29]} Qxd2+ {[%emt 0:09:44]} 16. Kxd2 {[%emt 0:00:06]} Na5 {[%emt 0:00:12]} 17. Rhc1 {[%emt 0:03:51]} a6 {[%emt 0:12:00]} 18. Bd3 {[%emt 0:00:20]} Rd8 {[%emt 0:04:25]} 19. Rc7 {[%emt 0:16:43]} Bd7 {[%emt 0:04:35]} 20. Ne5 {[%emt 0:05:31]} Be8 {[%emt 0:01:28]} 21. Ke3 {[%emt 0:00:19]} Rac8 {[%emt 0:05:23]} 22. Rbc1 {[%emt 0:00:22]} Rxc7 {[%emt 0:02:49]} 23. Rxc7 {[%emt 0:00:06]} f5 {[%emt 0:00:12]} 24. g4 {[%emt 0:10:18]} Nc6 {[%emt 0:03:21]} 25. exf5 {[%emt 0:01:43]} gxf5 {[%emt 0:02:57]} 26. gxf5 {[%emt 0:00:33]} exf5 {[%emt 0:03:50]} 27. Bxf5 {[%emt 0:01:46]} Nxd4 {[%emt 0:00:54]} 28. Rg7+ {[%emt 0:05:05]} Kf8 {[%emt 0:01:22]} 29. Bxh7 {[%emt 0:00:07]} Rd6 {[%emt 0:00:49]} 30. Rg8+ {[%emt 0:01:51]} Ke7 {[%emt 0:00:09]} 31. Be4 {[%emt 0:01:20]} Rxh6 {[%emt 0:01:32]} 32. Kxd4 {[%emt 0:00:07]} b5 {[%emt 0:00:34]} 33. Bg6 {[%emt 0:01:06]} Bxg6 {[%emt 0:00:39]} 34. Rxg6 {[%emt 0:00:07]} Rh4+ {[%emt 0:00:03]} 35. Kd5 {[%emt 0:00:15]} Ra4 {[%emt 0:00:16]} 36. Re6+ {[%emt 0:05:28]} Kf8 {[%emt 0:00:34]} 37. f4 {[%emt 0:00:13]} Rxa2 {[%emt 0:00:35]} 38. f5 {[%emt 0:00:35]} Rf2 {[%emt 0:00:59]} 39. f6 {[%emt 0:00:16]} a5 {[%emt 0:00:26]} 40. Rb6 {[%emt 0:00:29]} Kg8 {[%emt 0:00:43]} 41. Ke6 b4 {[%emt 0:00:36]} 42. Rb8+ {[%emt 0:00:26]} Kh7 {[%emt 0:00:05]} 43. Rb7+ {[%emt 0:00:05]} Kg8 {[%emt 0:00:33]} 44. Rg7+ {[%emt 0:00:11]} 1-0

[Event "ESP-chT Primera Division 2019"]
[Site "Linares"]
[Date "2019.08.28"]
[Round "3.16"]
[White "Gomez Dieguez, David"]
[Black "Gonzalez Guedes, Iyan"]
[Result "1-0"]
[ECO "B23"]
[WhiteElo "2296"]
[BlackElo "2115"]
[Annotator "NA"]
[PlyCount "79"]
[EventDate "2019.08.26"]
[EventType "team-tourn"]
[EventCountry "ESP"]
[SourceTitle "playchess.com"]
[Source "ChessBase"]
[SourceQuality "1"]
[TimeControl "5400+30"]

1. e4 {[%emt 0:00:00]} c5 {[%emt 0:00:00]} 2. Nc3 {[%emt 0:00:00]} Nc6 {[%emt 0:00:05]} 3. Nge2 {[%emt 0:00:00]} e5 {[%emt 0:01:05]} 4. Nd5 {[%emt 0:00:00]} Nge7 {[%emt 0:00:57]} 5. Nec3 {[%emt 0:00:12]} d6 {[%emt 0:02:12]} 6. Bc4 {[%emt 0:00:15]} Nxd5 {[%emt 0:00:40]} 7. Nxd5 {[%emt 0:00:12]} Be7 {[%emt 0:01:03]} 8. d3 {[%emt 0:03:04]} Be6 {[%emt 0:00:49]} 9. f4 {[%emt 0:05:14]} exf4 {[%emt 0:03:59]} 10. Bxf4 {[%emt 0:00:09]} O-O {[%emt 0:02:03]} 11. a4 {[%emt 0:05:59]} Bg5 {[%emt 0:10:47]} 12. O-O {[%emt 0:16:58]} Bxf4 {[%emt 0:04:39]} 13. Rxf4 {[%emt 0:00:06]} Ne5 {[%emt 0:00:49]} 14. Qh5 {[%emt 0:04:54]} Nxc4 {[%emt 0:16:38]} 15. dxc4 {[%emt 0:02:18]} Bxd5 {[%emt 0:00:26]} 16. cxd5 {[%emt 0:04:10]} Qe7 {[%emt 0:03:54]} 17. Raf1 {[%emt 0:20:59]} Rae8 {[%emt 0:03:06]} 18. Rh4 {[%emt 0:03:28]} h6 {[%emt 0:00:39]} 19. Rg4 {[%emt 0:03:24]} Kh7 {[%emt 0:04:28]} 20. c3 {[%emt 0:01:06]} b6 {[%emt 0:06:17]} 21. Rgf4 {[%emt 0:06:28]} Kg8 {[%emt 0:01:52]} 22. Rg4 {[%emt 0:04:26]} Kh7 {[%emt 0:01:21]} 23. Rf3 {[%emt 0:01:25]} g6 {[%emt 0:05:26]} 24. Qh3 {[%emt 0:00:04]} f5 {[%emt 0:01:16]} 25. Rh4 {[%emt 0:04:02]} Qg5 {[%emt 0:01:42]} 26. Rhf4 {[%emt 0:00:04]} Re5 {[%emt 0:02:40]} 27. Rf1 {[%emt 0:06:03]} Kg7 {[%emt 0:04:29]} 28. c4 {[%emt 0:00:53]} Rf7 {[%emt 0:02:47]} 29. Qc3 {[%emt 0:00:43]} Qf6 {[%emt 0:03:10]} 30. exf5 {[%emt 0:00:55]} Rxf5 {[%emt 0:02:57]} 31. Rxf5 {[%emt 0:00:40]} gxf5 {[%emt 0:00:01]} 32. Rxf5 {[%emt 0:00:54]} Qxc3 {[%emt 0:00:53]} 33. Rxf7+ {[%emt 0:00:01]} Kxf7 {[%emt 0:00:06]} 34. bxc3 {[%emt 0:00:02]} Kf6 {[%emt 0:01:35]} 35. Kf2 {[%emt 0:00:08]} Ke5 {[%emt 0:02:28]} 36. Kf3 {[%emt 0:00:37]} a6 {[%emt 0:00:46]} 37. g4 {[%emt 0:00:40]} Kf6 {[%emt 0:02:21]} 38. Kf4 {[%emt 0:00:11]} Kg6 {[%emt 0:01:01]} 39. h4 {[%emt 0:00:14]} a5 {[%emt 0:00:05]} 40. g5 {[%emt 0:01:21]} 1-0

[Event "ESP-chT Primera Division 2019"]
[Site "Linares"]
[Date "2019.08.28"]
[Round "3.17"]
[White "Badillo Ramos, Steve"]
[Black "Gomez Dieguez, Adrian"]
[Result "1/2-1/2"]
[ECO "C47"]
[WhiteElo "1967"]
[BlackElo "2295"]
[Annotator "NA"]
[PlyCount "86"]
[EventDate "2019.08.26"]
[EventType "team-tourn"]
[EventCountry "ESP"]
[SourceTitle "playchess.com"]
[Source "ChessBase"]
[SourceQuality "1"]
[TimeControl "5400+30"]

1. e4 {[%emt 0:00:00]} e5 {[%emt 0:00:00]} 2. Nf3 {[%emt 0:00:00]} Nc6 {[%emt 0:00:00]} 3. Nc3 {[%emt 0:00:36]} Nf6 {[%emt 0:00:37]} 4. d4 {[%emt 0:00:17]} exd4 {[%emt 0:00:06]} 5. Nxd4 {[%emt 0:00:07]} Bb4 {[%emt 0:00:06]} 6. Nxc6 {[%emt 0:00:21]} bxc6 {[%emt 0:00:04]} 7. Bd3 {[%emt 0:00:09]} d5 {[%emt 0:01:19]} 8. exd5 {[%emt 0:00:10]} O-O {[%emt 0:00:05]} 9. O-O {[%emt 0:00:09]} cxd5 {[%emt 0:00:02]} 10. h3 {[%emt 0:00:10]} Be6 {[%emt 0:09:28]} 11. Qf3 {[%emt 0:01:05]} c5 {[%emt 0:11:21]} 12. a3 {[%emt 0:12:16]} Ba5 {[%emt 0:03:05]} 13. Bg5 {[%emt 0:05:00]} h6 {[%emt 0:01:04]} 14. Bxf6 {[%emt 0:00:19]} Qxf6 {[%emt 0:00:07]} 15. Nxd5 {[%emt 0:00:44]} Qxf3 {[%emt 0:01:55]} 16. Ne7+ {[%emt 0:00:09]} Kh8 {[%emt 0:00:03]} 17. gxf3 {[%emt 0:00:07]} Bxh3 {[%emt 0:01:58]} 18. Rfd1 {[%emt 0:01:02]} Rae8 {[%emt 0:04:33]} 19. Nd5 {[%emt 0:14:52]} Re5 {[%emt 0:01:16]} 20. Bc4 {[%emt 0:00:31]} Rfe8 {[%emt 0:09:59]} 21. b4 {[%emt 0:06:07]} Bb6 {[%emt 0:18:56]} 22. Nxb6 {[%emt 0:01:35]} axb6 {[%emt 0:00:04]} 23. Bxf7 {[%emt 0:01:57]} Rf8 {[%emt 0:00:15]} 24. Rd5 {[%emt 0:01:01]} Re2 {[%emt 0:05:37]} 25. Bg6 {[%emt 0:00:17]} Be6 {[%emt 0:02:01]} 26. Rd6 {[%emt 0:00:56]} Bf5 {[%emt 0:00:04]} 27. Rxb6 {[%emt 0:11:54]} Bxg6 {[%emt 0:01:50]} 28. Rxg6 {[%emt 0:00:09]} Rxf3 {[%emt 0:00:02]} 29. b5 {[%emt 0:05:04]} Rxc2 {[%emt 0:10:57]} 30. Rb1 {[%emt 0:01:22]} Kh7 {[%emt 0:00:08]} 31. Rg3 {[%emt 0:00:35]} Rf7 {[%emt 0:00:04]} 32. b6 {[%emt 0:03:10]} Rb7 {[%emt 0:00:04]} 33. a4 {[%emt 0:00:10]} Ra2 {[%emt 0:00:15]} 34. Rg4 {[%emt 0:00:06]} Rc2 {[%emt 0:02:39]} 35. a5 {[%emt 0:00:25]} Ra2 {[%emt 0:00:04]} 36. Rb5 {[%emt 0:00:06]} Ra1+ {[%emt 0:00:52]} 37. Kg2 {[%emt 0:03:01]} Ra2 {[%emt 0:00:06]} 38. Rxc5 {[%emt 0:01:33]} Rf7 {[%emt 0:00:05]} 39. Kh1 {[%emt 0:03:01]} Rfxf2 {[%emt 0:01:08]} 40. Rb5 {[%emt 0:01:51]} Rf1+ {[%emt 0:01:18]} 41. Rg1 {[%emt 0:00:06]} Rff2 {[%emt 0:00:03]} 42. Rg4 {[%emt 0:00:08]} Rf1+ {[%emt 0:00:04]} 43. Rg1 {[%emt 0:00:05]} Rff2 {[%emt 0:00:04]} 1/2-1/2